[Event "FRA-ch Teams Top 16-B 2022"]
[Site "Chartres"]
[Date "2022.06.11"]
[Round "3.21"]
[White "Rakotomaharo, Fy Antenaina"]
[Black "Delorme, Axel"]
[Result "1-0"]
[ECO "B45"]
[WhiteElo "2467"]
[BlackElo "2461"]
[Annotator "TA"]
[PlyCount "107"]
[EventDate "2022.06.09"]
[EventType "team-tourn"]
[EventCountry "FRA"]
[SourceTitle "playchess.com"]
[Source "ChessBase"]
[SourceQuality "1"]
[TimeControl "40/5400+30:1800+30"]

{[%evp 15,107,37,32,0,0,0,0,0,-7,-14,-20,-18,-2,0,0,0,0,0,0,0,0,0,0,-20,-25,-76,0,0,0,0,0,-17,0,0,0,0,51,0,0,0,0,-19,-8,-29,-25,-134,45,41,51,71,41,46,214,205,178,185,378,302,406,363,619,597,631,259,486,316,310,262,336,300,366,295,605,559,468,397,1084,1056,1077,885,879,760,1100,825,683,516,499,454,1482,1387,1154,531,1240,1171]} 1. e4 {[%emt 0:00:03]} c5 {[%emt 0:00:05]} 2. Nf3 {[%emt 0:00:05]} e6 {[%emt 0:00:06]} 3. d4 {[%emt 0:00:17]} cxd4 {[%emt 0:00:05]} 4. Nxd4 {[%emt 0:00:07]} Nf6 {[%emt 0:00:07][%cal Bg8f6,Bf6d5,Bd5b4][%mdl 32]} 5. Nc3 {[%emt 0:00:07]} Nc6 {[%emt 0:00:04]} 6. Nxc6 {[%emt 0:00:44]} bxc6 {[%emt 0:00:09]} 7. e5 {[%emt 0:00:04]} Nd5 {[%emt 0:00:20]} 8. Ne4 {[%emt 0:00:05]} Bb7 {[%emt 0:02:19]} 9. c4 {[%emt 0:12:23] B45: Sicilian Four Knights.} Nb4 {[%emt 0:02:34]} 10. Bf4 {[%emt 0:05:03]} c5 {[%emt 0:10:56]} 11. Bd3 {[%emt 0:12:43] The position is equal.} (11. Bg5 $2 Qb8 12. Nc3 (12. Nd6+ $2 Bxd6 13. Qxd6 Nc2+ 14. Kd2 Qxd6+ 15. exd6 Nxa1 $17) 12... Qxe5+ 13. Be3 Be7 $19) 11... Qh4 {[%emt 0:10:32]} 12. g3 {[%emt 0:01:08]} Qh3 {[%emt 0:14:49] [#] White must now prevent ...Qg2.} 13. Qe2 $146 {[%emt 0:01:44]} ({Predecessor:} 13. Qf3 Rb8 14. a3 Nxd3+ 15. Qxd3 Be7 16. Nd6+ Kf8 17. Nxb7 Qg2 18. O-O-O Rxb7 19. Bd2 {1-0 (55) Lima,D (2535)-Sosa Harrison,J (2346) Buenos Aires 2005}) 13... Be7 {[%emt 0:07:14]} 14. f3 {[%emt 0:24:20]} O-O {[%emt 0:12:13]} 15. O-O-O {[%emt 0:01:40]} Nxa2+ {[%emt 0:13:08]} 16. Kb1 {[%emt 0:00:17]} Nb4 {[%emt 0:00:20]} 17. Nf2 {[%emt 0:07:35]} Qh5 {[%emt 0:01:42]} 18. g4 {[%emt 0:00:37]} Qh4 {[%emt 0:00:47]} 19. Be4 {[%emt 0:00:14]} Bxe4+ {[%emt 0:01:03]} 20. fxe4 {[%emt 0:07:50]} (20. Nxe4 $11 {keeps the balance.} Rfd8 21. Be3) 20... f6 {[%emt 0:08:01]} ({Black should try} 20... Rad8 $17) 21. Bg3 $11 {[%emt 0:05:30]} Qh6 {[%emt 0:00:06]} 22. Rxd7 {[%emt 0:00:46]} Nc6 {[%emt 0:00:04]} 23. h4 {[%emt 0:04:24][%cal Og4g5]} fxe5 {[%emt 0:01:03]} 24. g5 {[%emt 0:00:46]} Qg6 {[%emt 0:00:12]} 25. Qg4 {[%emt 0:00:09]} Kh8 {[%emt 0:05:07]} (25... Rab8 $11) 26. Rc7 {[%emt 0:04:29]} (26. Rhd1 $14) 26... Rac8 {[%emt 0:00:39]} 27. Rxc8 {[%emt 0:01:04]} Rxc8 {[%emt 0:00:16]} 28. h5 {[%emt 0:00:03]} Qxg5 {[%emt 0:01:45]} 29. Qxe6 {[%emt 0:00:10]} Rf8 {[%emt 0:01:46]} 30. Bh4 {[%emt 0:04:48] [#]} (30. Rg1 $1 $11 Qf6 31. Qxf6 gxf6 32. Ng4) 30... Qf4 $2 {[%emt 0:04:12]} 31. Bxe7 $14 {[%emt 0:00:53]} Nxe7 {[%emt 0:00:05]} 32. Qxe7 {[%emt 0:00:54]} Qxf2 {[%emt 0:00:13][%mdl 4096] Endgame KQR-KQR} 33. h6 {[%emt 0:01:14][%csl Gh6][%cal Re7g7]} Qf6 {[%emt 0:00:58] This move loses the game for Black.} ({Black should play} 33... gxh6 $14 34. Qxe5+ Kg8) 34. hxg7+ $18 {[%emt 0:00:10]} (34. Qxc5 g5 $11) (34. Qxa7 g5 $11) 34... Qxg7 {[%emt 0:00:11]} 35. Qxc5 {[%emt 0:00:04]} Re8 $2 {[%emt 0:03:06]} (35... h6 {was worth a try.} 36. Rg1 Qf6 37. Qxa7 Rg8) 36. Qc6 {[%emt 0:02:38]} Rd8 {[%emt 0:00:53]} 37. Qe6 {[%emt 0:00:22] Against Qf7. Strongly threatening c5.} Rb8 $2 {[%emt 0:00:50]} (37... Rf8 38. c5 Qf6 39. Qxf6+ Rxf6) 38. Rd1 {[%emt 0:01:03] And now c5 would win.} Qg5 {[%emt 0:00:54]} 39. Rd5 {[%emt 0:00:50]} (39. c5 $142 {c6 is the strong threat.} Qf4 40. Ka2) 39... Rd8 $2 {[%emt 0:00:30]} (39... Rf8 {was called for.} 40. Rxe5 (40. Qxe5+ Qxe5 41. Rxe5 Rc8 $16) 40... Qg1+ 41. Ka2 Qb6) 40. Rxe5 {[%emt 0:01:50]} Qg1+ {[%emt 0:00:23]} 41. Ka2 {[%emt 0:30:17] Qf6+ would kill now.} Qb6 {[%emt 0:01:50]} 42. Qf7 {[%emt 0:00:00]} Qc6 {[%emt 0:04:26]} 43. Kb1 {[%emt 0:00:00]} Rd1+ $2 {[%emt 0:02:20]} (43... Rg8 44. Qf2 (44. Re7 Rg1+ 45. Kc2 Qa4+ 46. Kc3 Rg3+ 47. Kd4 Qd1+ 48. Kc5 Qg1+ 49. Kc6 Qb6+ 50. Kd7 Rd3+ 51. Qd5 Rxd5+ $19) 44... Qd6) 44. Kc2 {[%emt 0:00:00][%cal Rf7f8]} Rd8 {[%emt 0:00:38] Prevents Qf8+.} 45. Kc3 {[%emt 0:00:00]} ({Weaker is} 45. Re7 Qa4+ 46. b3 (46. Kc3 Qa5+ 47. Kc2 Qa4+ 48. b3 Qa2+ 49. Kc1 Qa1+ 50. Kc2 Qa2+ 51. Kc1 Qa1+ 52. Kc2 Qa2+ $11) 46... Qa2+ 47. Kc1 Qa1+ 48. Kc2 Qa2+ 49. Kc1 Qa3+ 50. Kc2 Qa2+ $11) 45... Qb6 $2 {[%emt 0:02:38]} (45... Qg6 46. Qxg6 hxg6) 46. Re8+ {[%emt 0:00:00] White is clearly winning.} Rxe8 {[%emt 0:00:18]} 47. Qxe8+ {[%emt 0:00:00] KQ-KQ} Kg7 {[%emt 0:00:09]} 48. Qe5+ {[%emt 0:00:00]} Kg6 {[%emt 0:01:10]} 49. Qf5+ {[%emt 0:00:00]} Kg7 {[%emt 0:00:24]} 50. Qg5+ {[%emt 0:00:00]} Kf7 {[%emt 0:01:12]} 51. Qd5+ {[%emt 0:00:00]} Kg6 {[%emt 0:00:20]} (51... Ke7 $142 52. c5 Qa5+ 53. Kc2 Qa4+ 54. Kc3 Qa5+ 55. Kc4 Qa2+ 56. Kb5 Qxb2+ 57. Kc6 a5 58. Qd7+ Kf8 59. Qd8+ (59. Qxh7 a4 $16) 59... Kg7 60. Qxa5 Kg6) 52. c5 {[%emt 0:00:00]} Qa5+ {[%emt 0:00:38]} 53. Kc2 {[%emt 0:00:00]} (53. b4 $142 Qa1+ 54. Kb3) 53... Qa4+ {[%emt 0:04:25]} 54. Kb1 {[%emt 0:00:00] Weighted Error Value: White=0.38/Black=0.57} 1-0

[Event "FRA-ch Teams Top 16-B 2022"]
[Site "Chartres"]
[Date "2022.06.11"]
[Round "3.22"]
[White "Hamdouchi, Hicham"]
[Black "Riff, Jean-Noel"]
[Result "1/2-1/2"]
[ECO "C45"]
[WhiteElo "2536"]
[BlackElo "2444"]
[Annotator "TA"]
[PlyCount "66"]
[EventDate "2022.06.09"]
[EventType "team-tourn"]
[EventCountry "FRA"]
[SourceTitle "playchess.com"]
[Source "ChessBase"]
[SourceQuality "1"]
[TimeControl "40/5400+30:1800+30"]

{[%evp 9,66,6,15,-18,-14,-4,-12,-32,-31,-27,-38,-34,-10,-9,0,-2,0,0,0,0,0,-5,-22,-25,-15,-24,-18,-38,-19,-8,0,-3,0,-11,0,0,0,0,0,0,12,13,47,57,42,42,100,10,8,12,13,0,0,0,0,0,0,0,0]} 1. e4 {[%emt 0:00:04]} e5 {[%emt 0:00:04]} 2. Nf3 {[%emt 0:00:18]} Nc6 {[%emt 0:00:05]} 3. d4 {[%emt 0:00:07]} exd4 {[%emt 0:00:05]} 4. Nxd4 {[%emt 0:00:06]} Nf6 {[%emt 0:00:03][%cal Bg8f6,Bf6d5,Bd5f4][%mdl 32]} 5. Nxc6 {[%emt 0:00:10]} bxc6 {[%emt 0:00:06]} 6. Qe2 {[%emt 0:00:23] C45: Scotch Game.} a5 {[%emt 0:15:35]} 7. e5 {[%emt 0:14:54]} Nd5 {[%emt 0:01:02]} 8. c4 {[%emt 0:15:39]} Bb4+ {[%emt 0:06:28]} 9. Nd2 {[%emt 0:00:30]} Nf4 {[%emt 0:02:09]} 10. Qe3 {[%emt 0:00:44]} Ne6 {[%emt 0:04:24]} 11. Bd3 {[%emt 0:01:06]} d5 {[%emt 0:14:01]} 12. exd6 {[%emt 0:05:51]} cxd6 {[%emt 0:02:10]} 13. O-O {[%emt 0:03:24]} d5 {[%emt 0:04:04] [#]} 14. cxd5 $146 {[%emt 0:11:13]} ({Predecessor:} 14. Nf3 O-O 15. Ne5 Qd6 16. Qg3 Nc5 17. Bf4 Qf6 18. cxd5 cxd5 19. a3 Nxd3 20. Nxd3 {½-½ (58) Swiercz,D (2608)-Ragger,M (2632) Saint Quentin 2014}) 14... cxd5 {[%emt 0:00:23]} 15. Bb5+ {[%emt 0:00:14]} Bd7 {[%emt 0:00:04]} 16. Bxd7+ {[%emt 0:00:16]} (16. Bd3 {keeps more tension.} O-O 17. Nf3 Bd6 18. Ne5) 16... Qxd7 {[%emt 0:00:04]} 17. Nf3 {[%emt 0:00:11]} O-O {[%emt 0:02:26]} 18. Qd3 {[%emt 0:03:13]} d4 {[%emt 0:04:03]} 19. Ng5 {[%emt 0:05:07]} Nxg5 {[%emt 0:00:40]} 20. Bxg5 {[%emt 0:00:08]} Qd5 {[%emt 0:05:56]} 21. Bf4 {[%emt 0:04:10]} (21. Be3 $5 {[%cal Rd3d4]}) 21... Be7 {[%emt 0:01:39]} 22. Rfe1 {[%emt 0:01:45]} Bf6 {[%emt 0:00:19]} 23. a4 {[%emt 0:00:14]} Ra7 {[%emt 0:05:12]} 24. Qb5 {[%emt 0:16:56]} Qxb5 {[%emt 0:02:59]} 25. axb5 {[%emt 0:00:06]} Rb7 {[%emt 0:00:01]} 26. Rxa5 {[%emt 0:02:25]} h6 {[%emt 0:00:33]} 27. Kf1 {[%emt 0:01:26]} g5 {[%emt 0:07:51] [#]} (27... Kh7 $14) 28. Be5 {[%emt 0:09:24] White is more active.} (28. Bd6 $1 $16 {[%cal Rd6f8]} Rc8 29. b4) 28... Bxe5 $11 {[%emt 0:00:20] The position is equal.} 29. Rxe5 {[%emt 0:04:56] Threatening Ke2.} Rc8 {[%emt 0:00:07]} 30. Ra1 {[%emt 0:00:00]} Rc2 {[%emt 0:01:15]} 31. Rd1 {[%emt 0:00:00]} Rxb2 {[%emt 0:00:05]} 32. Rxd4 {[%emt 0:00:00]} R2xb5 {[%emt 0:00:04]} 33. Rxb5 {[%emt 0:00:00]} Rxb5 {[%emt 0:00:42] Weighted Error Value: White=0.10 (very precise) /Black=0.07 (flawless)} 1/2-1/2

[Event "FRA-ch Teams Top 16-B 2022"]
[Site "Chartres"]
[Date "2022.06.11"]
[Round "3.23"]
[White "Terrieux, Kevin"]
[Black "Tregubov, Pavel V."]
[Result "0-1"]
[ECO "D38"]
[WhiteElo "2448"]
[BlackElo "2541"]
[Annotator "TA"]
[PlyCount "100"]
[EventDate "2022.06.09"]
[EventType "team-tourn"]
[EventCountry "FRA"]
[SourceTitle "playchess.com"]
[Source "ChessBase"]
[SourceQuality "1"]
[TimeControl "40/5400+30:1800+30"]

{[%evp 12,100,35,27,31,37,27,12,46,22,20,9,14,14,45,47,42,40,50,45,15,16,27,0,0,0,13,0,0,0,0,0,16,0,0,0,-5,-25,-13,-32,-30,-32,-35,-37,-27,-50,-43,-51,-28,-29,0,-37,-7,-8,0,0,0,-29,-16,-17,-20,-32,-29,-30,-33,-73,-81,-77,-70,-77,-74,-77,-77,-77,-77,-82,-77,-140,-142,-143,-143,-154,-154,-5419,-692,-646,-426,-714,-643,-948,-917]} 1. d4 {[%emt 0:00:04]} Nf6 {[%emt 0:00:06]} 2. c4 {[%emt 0:00:09]} e6 {[%emt 0:00:05]} 3. Nf3 {[%emt 0:00:14]} d5 {[%emt 0:00:17]} 4. Nc3 {[%emt 0:02:07]} Bb4 {[%emt 0:00:17]} 5. cxd5 {[%emt 0:03:23]} exd5 {[%emt 0:00:07]} 6. Bg5 {[%emt 0:00:08]} O-O {[%emt 0:01:00]} 7. e3 {[%emt 0:01:37]} Bf5 {[%emt 0:00:33] D38: Queen's Gambit Declined: Ragozin Defence (4 Nf3 Bb4).} 8. Qb3 {[%emt 0:06:44]} Bxc3+ {[%emt 0:01:37]} 9. bxc3 {[%emt 0:01:05] 9.Qxc3 is the hot move.} Nbd7 {[%emt 0:01:05] The position is equal.} 10. Be2 {[%emt 0:13:04]} c5 {[%emt 0:00:20] [#]} 11. Bxf6 $146 {[%emt 0:01:07]} ({Predecessor:} 11. Qxb7 Rb8 12. Qa6 Rb2 13. Bxf6 Nxf6 14. O-O Bc8 15. Qd3 c4 16. Qd1 Ne4 17. Rc1 {0-1 (33) Mohammad,N (2526)-Bluebaum,M (2642) Chess.com INT 2017}) 11... Nxf6 {[%emt 0:01:40]} 12. dxc5 {[%emt 0:01:35]} Qc7 {[%emt 0:05:18]} 13. O-O {[%emt 0:05:47]} Be4 {[%emt 0:08:14]} 14. Nd4 {[%emt 0:17:37]} Nd7 {[%emt 0:01:49]} 15. Rfd1 {[%emt 0:00:46][%cal Oc5c6]} Nxc5 {[%emt 0:02:21]} 16. Qb4 {[%emt 0:00:24]} b6 {[%emt 0:04:00]} 17. a4 {[%emt 0:02:24]} (17. f3 $5 {[%cal Rf3e4]} Bg6 18. c4 $14) 17... a5 {[%emt 0:08:09]} 18. Qb2 {[%emt 0:07:04]} Rfe8 {[%emt 0:17:18]} 19. Nb3 {[%emt 0:17:32]} Qe5 {[%emt 0:05:43]} 20. Nd4 {[%emt 0:02:56]} Qg5 {[%emt 0:03:51][%csl Ge4][%cal Rg5g2] [#]} 21. Bf1 {[%emt 0:00:47]} Qf6 {[%emt 0:06:16]} 22. Qb5 {[%emt 0:00:49]} Rac8 {[%emt 0:02:19]} 23. Rd2 {[%emt 0:02:00]} Red8 {[%emt 0:00:27]} 24. Rad1 {[%emt 0:03:06]} Bg6 {[%emt 0:04:13] White should prevent ...Ne4.} 25. f3 {[%emt 0:01:27] Prevents Ne4.} h6 {[%emt 0:03:13]} 26. Re1 {[%emt 0:02:34]} Rd6 {[%emt 0:01:01]} 27. Rdd1 {[%emt 0:01:09]} Qe7 {[%emt 0:06:07]} 28. Ra1 {[%emt 0:01:04]} Kh8 {[%emt 0:00:46]} 29. Qb2 {[%emt 0:00:11]} Qf6 {[%emt 0:03:19]} (29... Bd3 $5 {[%cal Rd6f6]}) 30. Qd2 {[%emt 0:00:09]} Qe5 {[%emt 0:01:24]} 31. Kh1 {[%emt 0:00:14]} f6 {[%emt 0:00:36]} 32. Bb5 {[%emt 0:00:18]} Qe7 {[%emt 0:03:59]} 33. Kg1 {[%emt 0:00:09]} Nd7 {[%emt 0:02:22]} 34. Bxd7 {[%emt 0:01:13]} Qxd7 {[%emt 0:02:27]} 35. Nb5 {[%emt 0:00:30]} Re6 {[%emt 0:00:38]} 36. Nd4 {[%emt 0:04:29]} Re7 {[%emt 0:00:35]} 37. Qb2 {[%emt 0:00:22]} Qd6 {[%emt 0:01:01]} 38. Qd2 {[%emt 0:00:56]} Rc4 {[%emt 0:00:24] Black is more active.} 39. Qb2 {[%emt 0:01:11]} Qc5 {[%emt 0:00:27]} 40. Ra3 {[%emt 0:00:14]} Be8 {[%emt 0:02:52]} 41. Qa1 {[%emt 0:05:55]} Bd7 {[%emt 0:02:51]} 42. Kf2 {[%emt 0:01:16]} Re8 {[%emt 0:01:15]} 43. Ke2 {[%emt 0:01:40]} Rc8 {[%emt 0:05:07]} 44. Kd2 {[%emt 0:01:43]} (44. Kf2 $142) 44... Qe7 $17 {[%emt 0:00:34]} 45. g3 {[%emt 0:02:33]} Qe8 {[%emt 0:01:07][%cal Rd7a4]} 46. Rb1 {[%emt 0:00:43]} Qh5 {[%emt 0:00:19]} ({Stronger than} 46... Bxa4 47. Rxb6 Bd7 48. Rd6 $15) 47. Rxb6 $2 {[%emt 0:06:43] [#] Now White is beyond hope.} (47. Rh1 $17) 47... Qxh2+ {[%emt 0:00:09]} (47... Rxd4+ $142 $1 {[%mdl 512]} 48. exd4 Qxh2+ 49. Kd1 Bf5) 48. Ne2 $19 {[%emt 0:00:18]} Qf2 {[%emt 0:02:47] Hoping for ...d4.} 49. Rd6 {[%emt 0:02:42]} (49. Qg1 $142 Qxf3 50. Rb2) 49... Bh3 {[%emt 0:04:02]} 50. f4 {[%emt 0:03:07]} d4 {[%emt 0:02:46] Weighted Error Value: White=0.36/Black=0.33} 0-1

[Event "FRA-ch Teams Top 16-B 2022"]
[Site "Chartres"]
[Date "2022.06.11"]
[Round "3.24"]
[White "Benmesbah, Natacha"]
[Black "Navrotescu, Andreea"]
[Result "1-0"]
[ECO "C13"]
[WhiteElo "2251"]
[BlackElo "2318"]
[Annotator "TA"]
[PlyCount "91"]
[EventDate "2022.06.09"]
[EventType "team-tourn"]
[EventCountry "FRA"]
[SourceTitle "playchess.com"]
[Source "ChessBase"]
[SourceQuality "1"]
[TimeControl "40/5400+30:1800+30"]

{[%evp 12,91,24,25,52,62,77,0,5,5,21,-28,-31,-21,-9,0,-27,-48,0,0,0,-52,-20,-34,-37,-37,-49,-53,49,47,107,85,208,230,426,387,629,617,6245,6540,2945,2855,29994,1450,1344,929,897,896,878,871,756,602,606,592,1163,595,604,604,596,585,573,552,524,506,462,399,382,361,414,351,498,491,717,688,708,677,604,570,1350,711,1255,1034]} 1. e4 {[%emt 0:00:04]} e6 {[%emt 0:00:05]} 2. d4 {[%emt 0:00:15]} d5 {[%emt 0:00:06]} 3. Nc3 {[%emt 0:00:13]} Nf6 {[%emt 0:00:19]} 4. Bg5 {[%emt 0:00:18]} dxe4 {[%emt 0:00:18]} 5. Nxe4 {[%emt 0:00:19]} Be7 {[%emt 0:00:09]} 6. Bxf6 {[%emt 0:00:12]} gxf6 {[%emt 0:00:07]} 7. Qd2 {[%emt 0:00:43]} e5 {[%emt 0:00:45] C13: French: Classical System: 4 Bg5 Be7, Alekhine-Chatard Attack.} 8. Nf3 {[%emt 0:15:59]} f5 {[%emt 0:01:58] [#]} 9. Nc3 $146 {[%emt 0:20:31] White is more active. Pair of Knights!} (9. Ng3 $1 $16) ({Predecessor:} 9. Ng3 e4 10. Ne5 Bg5 11. Qc3 f6 12. Nc4 Nc6 13. h4 Bf4 14. Nh5 Bd6 15. Nxd6+ Qxd6 {½-½ (32) Ansell,S (2368)-Harvey,M (2317) England 2015}) 9... e4 $11 {[%emt 0:00:27] The position is equal.} 10. Ne5 {[%emt 0:00:32]} Nd7 {[%emt 0:18:26]} 11. Nxd7 {[%emt 0:13:45]} (11. Nc4 $142 $1) 11... Bxd7 {[%emt 0:06:18]} 12. Bc4 {[%emt 0:02:33][%cal Oh2h4]} Bg5 {[%emt 0:17:34]} 13. Qe2 {[%emt 0:00:52][%cal Oh2h4]} O-O {[%emt 0:02:52]} 14. h4 {[%emt 0:05:33]} Bf6 {[%emt 0:02:06]} (14... Bh6 $1 $15 {is more appropriate.}) 15. O-O-O {[%emt 0:01:35]} c6 {[%emt 0:04:30]} (15... Bxh4 $2 16. Kb1 b5 17. g3 (17. Qh5 Qg5 $16) 17... bxc4 18. Rxh4 $18) 16. g4 {[%emt 0:10:09]} (16. a4 $11) 16... b5 $15 {[%emt 0:00:42]} (16... Bxh4 $2 17. gxf5 Bg5+ 18. Kb1 Bxf5 19. Nxe4 $18) 17. Bb3 {[%emt 0:00:27]} a5 {[%emt 0:02:10]} 18. a4 {[%emt 0:01:59]} b4 {[%emt 0:00:48]} (18... Bxh4 $2 19. gxf5 Bg5+ 20. Kb1 Bxf5 21. Rdg1 $18 (21. Nxe4 Qe7 $16) (21. axb5 a4 $18)) 19. Nb1 {[%emt 0:00:53]} c5 {[%emt 0:11:11]} ({Don't do} 19... Bxh4 20. Nd2 Bg5 21. Kb1 $16) (19... fxg4 $15 20. Nd2 Bxd4 21. Nxe4 c5) 20. dxc5 $14 {[%emt 0:11:49] Black must now prevent c6.} Qe8 {[%emt 0:00:01]} ({Black should try} 20... Qe7 $1 $14) 21. gxf5 {[%emt 0:07:11] Strongly threatening Rd6.} Bxf5 {[%emt 0:11:09] [#] Loses the game.} (21... Kh8 $16) 22. Rd5 $1 $18 {[%emt 0:01:03]} Be5 $2 {[%emt 0:03:37]} (22... Qe6 {was called for.} 23. Qe3 Bg7) 23. Qh5 {[%emt 0:02:35]} Bf4+ $2 {[%emt 0:00:23]} (23... Qe6 24. Rg1+ Kh8) 24. Nd2 {[%emt 0:00:04]} Be6 {[%emt 0:01:37] [#]} 25. Rg5+ $1 {[%emt 0:02:14][%mdl 512]} Kh8 {[%emt 0:00:39]} 26. Qh6 {[%emt 0:00:30][%csl Gg5][%cal Rh6g7]} Bxd2+ {[%emt 0:05:38]} 27. Kxd2 {[%emt 0:00:03]} (27. Kb1 $142 Bxg5 28. hxg5 Bf5 29. Qf6+ Kg8 30. Qxf5 h6 31. Qg6+ Kh8 32. Rxh6#) 27... Qd8+ {[%emt 0:00:07]} 28. Kc1 {[%emt 0:00:06][%csl Gg5][%cal Rh6g7]} Rg8 {[%emt 0:00:06] Prevents Qg7+.} 29. Bxe6 {[%emt 0:01:48]} fxe6 {[%emt 0:00:02]} 30. Rxg8+ {[%emt 0:00:21]} Qxg8 {[%emt 0:00:05][%mdl 4096] Endgame KQR-KQR} 31. Qf6+ {[%emt 0:00:06]} Qg7 {[%emt 0:00:01]} 32. Qxe6 {[%emt 0:00:08]} Rd8 {[%emt 0:01:52]} 33. Kb1 {[%emt 0:01:23]} Qg6 {[%emt 0:03:16]} 34. Qxg6 {[%emt 0:00:30]} hxg6 {[%emt 0:00:02] KR-KR} 35. Re1 {[%emt 0:00:05]} Rc8 {[%emt 0:03:52]} 36. c6 {[%emt 0:00:10]} Rxc6 {[%emt 0:00:21]} 37. Rxe4 {[%emt 0:00:02]} Rc5 {[%emt 0:00:22]} 38. Rf4 {[%emt 0:01:04]} Kg7 {[%emt 0:00:14]} 39. Kc1 {[%emt 0:00:08]} Rd5 {[%emt 0:00:27]} 40. c3 {[%emt 0:00:22][%cal Bc2c3,Bc3c4,Bc4c5,Bc5c6][%mdl 32]} b3 {[%emt 0:01:52]} (40... bxc3 {might work better.} 41. bxc3 Rd8) 41. c4 {[%emt 0:02:16] White is clearly winning.} Rd7 {[%emt 0:02:07]} (41... Rd6 $142 42. c5 Rc6) 42. c5 {[%emt 0:01:32]} Rc7 {[%emt 0:00:50]} 43. Rc4 {[%emt 0:00:05] Hoping for c6.} Kf6 {[%emt 0:00:03]} 44. Kd2 {[%emt 0:02:51] c6 is the strong threat.} Ke5 {[%emt 0:00:23]} 45. Kc3 {[%emt 0:01:57] aiming for c6.} Kd5 {[%emt 0:00:06]} 46. c6 {[%emt 0:01:45] Weighted Error Value: White=0.30/Black=0.63} 1-0

[Event "FRA-ch Teams Top 16-B 2022"]
[Site "Chartres"]
[Date "2022.06.11"]
[Round "3.26"]
[White "Di Nicolantonio, Lucas"]
[Black "Buscara, Sevan"]
[Result "0-1"]
[ECO "C54"]
[WhiteElo "2399"]
[BlackElo "2385"]
[Annotator "TA"]
[PlyCount "48"]
[EventDate "2022.06.09"]
[EventType "team-tourn"]
[EventCountry "FRA"]
[SourceTitle "playchess.com"]
[Source "ChessBase"]
[SourceQuality "1"]
[TimeControl "40/5400+30:1800+30"]

{[%evp 14,48,17,19,23,0,20,-22,-5,-35,-46,-73,53,48,51,-26,-24,-27,-22,-20,-41,-28,-37,-177,-175,-256,-251,-489,-504,-460,-498,-812,-809,-808,-770,-779,-751]} 1. e4 {[%emt 0:00:19]} e5 {[%emt 0:00:09]} 2. Nf3 {[%emt 0:00:33]} Nc6 {[%emt 0:00:10]} 3. Bc4 {[%emt 0:02:21]} Nf6 {[%emt 0:02:06]} 4. d3 {[%emt 0:00:26]} Bc5 {[%emt 0:02:48]} 5. Bg5 {[%emt 0:08:15]} h6 {[%emt 0:02:00]} 6. Bh4 {[%emt 0:01:06]} g5 {[%emt 0:04:26]} 7. Bg3 {[%emt 0:00:25]} d6 {[%emt 0:00:09]} 8. c3 {[%emt 0:05:26] outshines the older 8.h3.} a6 {[%emt 0:02:05] C54: Giuoco Piano: 4 c3 Nf6, main lines with 5 d4 and 5 d3.} 9. a4 {[%emt 0:10:16]} Ba7 {[%emt 0:06:51]} 10. a5 {[%emt 0:07:14] [#]} Nh7 $146 {[%emt 0:08:02] The position is equal.} ({Predecessor:} 10... Bg4 11. Nbd2 Qd7 12. Qb3 O-O-O 13. Bxf7 d5 14. exd5 Nxd5 15. Bxd5 Qxd5 16. Qxd5 Rxd5 {1-0 (50) Kosteniuk,A (2471)-Osmanodja,F (2256) Tornelo INT 2020}) 11. d4 {[%emt 0:12:14]} h5 {[%emt 0:02:30] aiming for ...h4.} 12. h3 {[%emt 0:22:02][%cal Rd4e5]} g4 {[%emt 0:15:10]} (12... h4 $17 13. Bh2 exd4) 13. hxg4 $14 {[%emt 0:01:44]} ({Wrong is} 13. dxe5 $2 gxf3 14. Qxf3 Ng5 $19) 13... hxg4 {[%emt 0:06:12] [#]} 14. dxe5 {[%emt 0:04:47]} (14. Nxe5 $1 $14 dxe5 15. d5) 14... gxf3 $11 {[%emt 0:02:17]} 15. Qxf3 {[%emt 0:00:04][%csl Gc4][%cal Rf3f7]} Be6 {[%emt 0:00:59]} 16. Bxe6 {[%emt 0:00:36]} fxe6 {[%emt 0:00:18]} 17. exd6 {[%emt 0:06:10]} cxd6 {[%emt 0:01:28]} 18. Rh6 {[%emt 0:00:44] White does not recover from this.} (18. Nd2 $15 Qc7 19. Qh5+ Qf7 20. Ke2 (20. Nc4 Qxh5 21. Rxh5 Kf7 $11)) 18... Qe7 $19 {[%emt 0:05:06] ...0-0-0 is the strong threat.} 19. Qh5+ {[%emt 0:10:55]} (19. Bh4 {was necessary.} Qf7 20. Ke2) 19... Kd7 {[%emt 0:02:43] [#] Strongly threatening ...Nf6.} 20. Qh2 $2 {[%emt 0:00:32]} (20. e5 Qg7 21. Qg6 (21. exd6 $2 Nf6 $19) 21... Qxg6 22. Rxg6) 20... Qg7 {[%emt 0:02:20] And now ...Nf6 would win. Black is clearly winning.} 21. Nd2 {[%emt 0:03:13]} Nf6 {[%emt 0:01:48]} 22. Rh4 {[%emt 0:00:59]} (22. Rh3 $142 Ng4 23. Qg1) 22... Ng4 {[%emt 0:01:14]} 23. Qh3 {[%emt 0:00:23]} Rxh4 {[%emt 0:00:34]} 24. Bxh4 {[%emt 0:00:12]} Rh8 {[%emt 0:00:28] Weighted Error Value: White=0.68/Black=0.16 (very precise)} 0-1